[Event "Titled Tuesday Blitz April 25 Early 2023"]
[White "Odegov, Artem"]
[Black "Chabris, Christopher"]
[WhiteFideId "34183644"]
[BlackFideId "2005263"]
[WhiteElo "2300"]
[BlackElo "2313"]
[Result "1-0"]
[Round "03"]
[TimeControl "180+2"]
[Date "2023.04.25"]
[WhiteClock "0:00:11"]
[BlackClock "0:00:01"]

1. d4 {[%clk 0:03:00]}  Nf6 {[%clk 0:02:58]} 2. c4 {[%clk 0:03:01]}  e6 {[%clk 0:02:58]} 3. Nf3 {[%clk 0:03:01]}  Bb4+ {[%clk 0:02:58]} 4. Nbd2 {[%clk 0:03:00]}  b6 {[%clk 0:02:58]} 5. a3 {[%clk 0:03:00]}  Bxd2+ {[%clk 0:02:59]} 6. Qxd2 {[%clk 0:03:01]}  Bb7 {[%clk 0:02:59]} 7. e3 {[%clk 0:03:02]}  O-O {[%clk 0:02:58]} 8. Bd3 {[%clk 0:03:02]}  d5 {[%clk 0:02:57]} 9. O-O {[%clk 0:03:01]}  Nbd7 {[%clk 0:02:56]} 10. b3 {[%clk 0:03:02]}  c5 {[%clk 0:02:53]} 11. Bb2 {[%clk 0:03:02]}  dxc4 {[%clk 0:02:38]} 12. Bxc4 {[%clk 0:03:00]}  Qe7 {[%clk 0:02:32]} 13. Rfd1 {[%clk 0:02:47]}  a6 {[%clk 0:02:18]} 14. Qe2 {[%clk 0:02:43]}  b5 {[%clk 0:02:15]} 15. Bd3 {[%clk 0:02:41]}  Ne4 {[%clk 0:02:06]} 16. Rac1 {[%clk 0:02:36]}  Rac8 {[%clk 0:02:01]} 17. Bb1 {[%clk 0:02:27]}  Bd5 {[%clk 0:01:59]} 18. Nd2 {[%clk 0:01:49]}  Nxd2 {[%clk 0:01:51]} 19. Qxd2 {[%clk 0:01:50]}  g6 {[%clk 0:01:39]} 20. dxc5 {[%clk 0:01:46]}  Nxc5 {[%clk 0:01:04]} 21. Qb4 {[%clk 0:01:28]}  Qg5 {[%clk 0:00:55]} 22. e4 {[%clk 0:01:11]}  Bxb3 {[%clk 0:00:51]} 23. Rxc5 {[%clk 0:01:01]}  Qxc5 {[%clk 0:00:20]} 24. Qxb3 {[%clk 0:01:00]}  Qc4 {[%clk 0:00:20]} 25. Qe3 {[%clk 0:00:59]}  Rfd8 {[%clk 0:00:18]} 26. Re1 {[%clk 0:00:59]}  Qc5 {[%clk 0:00:08]} 27. Qf3 {[%clk 0:00:49]}  e5 {[%clk 0:00:07]} 28. Qf6 {[%clk 0:00:42]}  Re8 {[%clk 0:00:04]} 29. h3 {[%clk 0:00:37]}  Qe7 {[%clk 0:00:03]} 30. Qf3 {[%clk 0:00:36]}  Rc4 {[%clk 0:00:02]} 31. Rd1 {[%clk 0:00:35]}  Rd8 {[%clk 0:00:01]} 32. Rd5 {[%clk 0:00:11]}  Rxd5 {[%clk 0:00:01]} 33. exd5 {[%clk 0:00:12]}  e4 {[%clk 0:00:01]} 34. Qe3 {[%clk 0:00:12]}  f6 {[%clk 0:00:01]} 35. Ba2 {[%clk 0:00:11]} 1-0


[Site "https://www.chess.com"]

[Event "Titled Tuesday Blitz April 25 Early 2023"]
[White "Ardila, Oscar Humberto"]
[Black "Cori T., Deysi"]
[WhiteFideId "4404742"]
[BlackFideId "3801934"]
[WhiteElo "1918"]
[BlackElo "2292"]
[Result "0-1"]
[Round "03"]
[TimeControl "180+2"]
[Date "2023.04.25"]
[WhiteClock "0:00:14"]
[BlackClock "0:01:43"]

1. d4 {[%clk 0:03:00]}  e6 {[%clk 0:02:58]} 2. c4 {[%clk 0:02:56]}  b6 {[%clk 0:02:58]} 3. Nc3 {[%clk 0:02:56]}  Bb7 {[%clk 0:02:58]} 4. Nf3 {[%clk 0:02:57]}  Bb4 {[%clk 0:02:58]} 5. e3 {[%clk 0:02:56]}  f5 {[%clk 0:02:58]} 6. Bd2 {[%clk 0:02:55]}  Nf6 {[%clk 0:02:58]} 7. Be2 {[%clk 0:02:55]}  O-O {[%clk 0:02:58]} 8. O-O {[%clk 0:02:55]}  d6 {[%clk 0:02:57]} 9. a3 {[%clk 0:02:54]}  Bxc3 {[%clk 0:02:57]} 10. Bxc3 {[%clk 0:02:55]}  Ne4 {[%clk 0:02:57]} 11. Be1 {[%clk 0:02:56]}  Nd7 {[%clk 0:02:57]} 12. Nd2 {[%clk 0:02:56]}  Qg5 {[%clk 0:02:55]} 13. Nxe4 {[%clk 0:02:53]}  fxe4 {[%clk 0:02:54]} 14. Bg4 {[%clk 0:02:46]}  Rf6 {[%clk 0:02:53]} 15. Bc3 {[%clk 0:02:40]}  Rg6 {[%clk 0:02:45]} 16. Bh3 {[%clk 0:02:37]}  Rf8 {[%clk 0:02:44]} 17. d5 {[%clk 0:02:32]}  e5 {[%clk 0:02:38]} 18. g3 {[%clk 0:02:26]}  Nf6 {[%clk 0:02:34]} 19. Be6+ {[%clk 0:02:24]}  Kh8 {[%clk 0:02:34]} 20. b4 {[%clk 0:02:17]}  Bc8 {[%clk 0:02:34]} 21. c5 {[%clk 0:02:07]}  Ng4 {[%clk 0:02:22]} 22. cxd6 {[%clk 0:01:36]}  cxd6 {[%clk 0:02:20]} 23. Rc1 {[%clk 0:01:21]}  Qh6 {[%clk 0:01:53]} 24. h4 {[%clk 0:00:36]}  Nxf2 {[%clk 0:01:50]} 25. Rxf2 {[%clk 0:00:27]}  Rxg3+ {[%clk 0:01:46]} 26. Rg2 {[%clk 0:00:27]}  Qxe3+ {[%clk 0:01:45]} 27. Kh1 {[%clk 0:00:18]}  Rxg2 {[%clk 0:01:45]} 28. Kxg2 {[%clk 0:00:17]}  Rf2+ {[%clk 0:01:43]} 29. Kg1 {[%clk 0:00:14]} 0-1


[Site "https://www.chess.com"]

[Event "Titled Tuesday Blitz April 25 Early 2023"]
[White "Albuquerque Junior,Wellington S."]
[Black "Asavasaetakul, Chawit"]
[WhiteFideId "2151480"]
[BlackFideId "6204856"]
[WhiteElo "2109"]
[BlackElo "1919"]
[Result "0-1"]
[Round "03"]
[TimeControl "180+2"]
[Date "2023.04.25"]
[WhiteClock "0:00:01"]
[BlackClock "0:00:25"]

1. c4 {[%clk 0:03:00]}  c6 {[%clk 0:02:58]} 2. g3 {[%clk 0:02:56]}  d5 {[%clk 0:02:58]} 3. Bg2 {[%clk 0:02:56]}  Nf6 {[%clk 0:02:59]} 4. Nf3 {[%clk 0:02:57]}  Bf5 {[%clk 0:02:57]} 5. Qb3 {[%clk 0:02:53]}  Qb6 {[%clk 0:02:49]} 6. d3 {[%clk 0:02:53]}  dxc4 {[%clk 0:02:43]} 7. Qxc4 {[%clk 0:02:50]}  e6 {[%clk 0:02:40]} 8. O-O {[%clk 0:02:39]}  Nbd7 {[%clk 0:02:39]} 9. Be3 {[%clk 0:02:13]}  Qb4 {[%clk 0:02:27]} 10. Qxb4 {[%clk 0:02:00]}  Bxb4 {[%clk 0:02:27]} 11. a3 {[%clk 0:02:01]}  Be7 {[%clk 0:02:27]} 12. Nc3 {[%clk 0:01:57]}  O-O {[%clk 0:02:27]} 13. Rac1 {[%clk 0:01:46]}  h6 {[%clk 0:02:24]} 14. Nd4 {[%clk 0:01:43]}  Bg6 {[%clk 0:02:20]} 15. Nb3 {[%clk 0:01:44]}  Bd6 {[%clk 0:01:53]} 16. Na5 {[%clk 0:01:40]}  Rab8 {[%clk 0:01:53]} 17. Rfd1 {[%clk 0:01:32]}  Nd5 {[%clk 0:01:45]} 18. Nxd5 {[%clk 0:01:02]}  cxd5 {[%clk 0:01:30]} 19. Bxa7 {[%clk 0:00:41]}  Ra8 {[%clk 0:01:30]} 20. Nxb7 {[%clk 0:00:42]}  Rxa7 {[%clk 0:01:30]} 21. Nxd6 {[%clk 0:00:42]}  Nb6 {[%clk 0:00:58]} 22. Nb5 {[%clk 0:00:34]}  Ra5 {[%clk 0:00:57]} 23. Nc3 {[%clk 0:00:33]}  Rb8 {[%clk 0:00:56]} 24. Rc2 {[%clk 0:00:28]}  Nd7 {[%clk 0:00:55]} 25. Rdc1 {[%clk 0:00:16]}  Kh7 {[%clk 0:00:55]} 26. h4 {[%clk 0:00:15]}  h5 {[%clk 0:00:54]} 27. Na2 {[%clk 0:00:13]}  Ne5 {[%clk 0:00:52]} 28. Nb4 {[%clk 0:00:11]}  Ra7 {[%clk 0:00:46]} 29. Rc8 {[%clk 0:00:10]}  Rbb7 {[%clk 0:00:40]} 30. Rd8 {[%clk 0:00:09]}  Bf5 {[%clk 0:00:39]} 31. Rcc8 {[%clk 0:00:08]}  Kg6 {[%clk 0:00:39]} 32. Rc1 {[%clk 0:00:07]}  Rc7 {[%clk 0:00:38]} 33. Rxc7 {[%clk 0:00:06]}  Rxc7 {[%clk 0:00:39]} 34. e4 {[%clk 0:00:05]}  Rc1+ {[%clk 0:00:36]} 35. Kh2 {[%clk 0:00:01]}  Ng4+ {[%clk 0:00:36]} 36. Kh3 {[%clk 0:00:02]}  Nxf2+ {[%clk 0:00:36]} 37. Kh2 {[%clk 0:00:02]}  dxe4 {[%clk 0:00:31]} 38. dxe4 {[%clk 0:00:01]}  Nxe4 {[%clk 0:00:25]} 0-1


[Site "https://www.chess.com"]

[Event "Titled Tuesday Blitz April 25 Early 2023"]
[White "sebastianmarinp"]
[Black "Mordechai, Hanan"]
[BlackFideId "2804166"]
[WhiteElo "2304"]
[BlackElo "2324"]
[Result "1-0"]
[Round "03"]
[TimeControl "180+2"]
[Date "2023.04.25"]
[WhiteClock "0:00:05"]
[BlackClock "0:00:01"]

1. e4 {[%clk 0:03:00]}  c5 {[%clk 0:02:59]} 2. Nf3 {[%clk 0:02:59]}  d6 {[%clk 0:02:58]} 3. d4 {[%clk 0:02:59]}  cxd4 {[%clk 0:02:59]} 4. Nxd4 {[%clk 0:03:00]}  Nf6 {[%clk 0:02:59]} 5. Nc3 {[%clk 0:02:59]}  g6 {[%clk 0:02:59]} 6. Be3 {[%clk 0:02:58]}  Bg7 {[%clk 0:02:59]} 7. f3 {[%clk 0:02:58]}  O-O {[%clk 0:02:59]} 8. Bc4 {[%clk 0:02:58]}  Nc6 {[%clk 0:02:59]} 9. Bb3 {[%clk 0:02:58]}  Bd7 {[%clk 0:02:58]} 10. Qd2 {[%clk 0:02:58]}  Na5 {[%clk 0:02:57]} 11. O-O-O {[%clk 0:02:38]}  Rb8 {[%clk 0:02:56]} 12. Bg5 {[%clk 0:02:19]}  b5 {[%clk 0:02:49]} 13. Nde2 {[%clk 0:02:12]}  Nc4 {[%clk 0:02:47]} 14. Qd3 {[%clk 0:01:51]}  Be6 {[%clk 0:02:28]} 15. Nd4 {[%clk 0:01:39]}  Ne5 {[%clk 0:02:25]} 16. Qd2 {[%clk 0:01:31]}  Bxb3 {[%clk 0:02:14]} 17. Nxb3 {[%clk 0:01:28]}  a5 {[%clk 0:02:09]} 18. Bxf6 {[%clk 0:01:17]}  Bxf6 {[%clk 0:02:08]} 19. Nd5 {[%clk 0:01:18]}  Bg7 {[%clk 0:02:06]} 20. Qxa5 {[%clk 0:01:14]}  Nc4 {[%clk 0:01:23]} 21. Qxd8 {[%clk 0:01:07]}  Bxb2+ {[%clk 0:01:22]} 22. Kb1 {[%clk 0:01:07]}  Rbxd8 {[%clk 0:01:20]} 23. Nxe7+ {[%clk 0:00:56]}  Kg7 {[%clk 0:01:19]} 24. Nd2 {[%clk 0:00:49]}  Bf6 {[%clk 0:00:58]} 25. Nxc4 {[%clk 0:00:46]}  bxc4 {[%clk 0:00:59]} 26. Nd5 {[%clk 0:00:39]}  Rb8+ {[%clk 0:00:56]} 27. Kc1 {[%clk 0:00:39]}  Bb2+ {[%clk 0:00:53]} 28. Kd2 {[%clk 0:00:38]}  f5 {[%clk 0:00:51]} 29. Rhe1 {[%clk 0:00:29]}  Ra8 {[%clk 0:00:37]} 30. Nc7 {[%clk 0:00:26]}  Rxa2 {[%clk 0:00:31]} 31. Ne6+ {[%clk 0:00:25]}  Kf7 {[%clk 0:00:30]} 32. Nxf8 {[%clk 0:00:26]}  Kxf8 {[%clk 0:00:28]} 33. exf5 {[%clk 0:00:26]}  gxf5 {[%clk 0:00:29]} 34. Re6 {[%clk 0:00:21]}  Be5 {[%clk 0:00:29]} 35. g3 {[%clk 0:00:17]}  Kf7 {[%clk 0:00:28]} 36. Rh6 {[%clk 0:00:16]}  Kg7 {[%clk 0:00:28]} 37. Rh4 {[%clk 0:00:14]}  d5 {[%clk 0:00:26]} 38. Re1 {[%clk 0:00:10]}  Bf6 {[%clk 0:00:23]} 39. Rh5 {[%clk 0:00:09]}  Kg6 {[%clk 0:00:22]} 40. g4 {[%clk 0:00:09]}  d4 {[%clk 0:00:17]} 41. Rxf5 {[%clk 0:00:05]}  d3 {[%clk 0:00:17]} 42. Rc1 {[%clk 0:00:04]}  Bd8 {[%clk 0:00:14]} 43. Rc5 {[%clk 0:00:03]}  Ba5+ {[%clk 0:00:07]} 44. Rxa5 {[%clk 0:00:03]}  Rxa5 {[%clk 0:00:07]} 45. cxd3 {[%clk 0:00:03]}  cxd3 {[%clk 0:00:07]} 46. Kxd3 {[%clk 0:00:04]}  Ra3+ {[%clk 0:00:07]} 47. Ke4 {[%clk 0:00:04]}  Ra2 {[%clk 0:00:07]} 48. h4 {[%clk 0:00:03]}  Ra4+ {[%clk 0:00:08]} 49. Ke3 {[%clk 0:00:03]}  Ra2 {[%clk 0:00:09]} 50. Kf4 {[%clk 0:00:03]}  Ra4+ {[%clk 0:00:08]} 51. Kg3 {[%clk 0:00:03]}  Ra6 {[%clk 0:00:08]} 52. Rc5 {[%clk 0:00:04]}  Rb6 {[%clk 0:00:08]} 53. Rf5 {[%clk 0:00:05]}  Ra6 {[%clk 0:00:08]} 54. Rf4 {[%clk 0:00:05]}  Rb6 {[%clk 0:00:07]} 55. Re4 {[%clk 0:00:06]}  Ra6 {[%clk 0:00:08]} 56. Rd4 {[%clk 0:00:06]}  Rb6 {[%clk 0:00:08]} 57. Ra4 {[%clk 0:00:07]}  Rc6 {[%clk 0:00:08]} 58. h5+ {[%clk 0:00:07]}  Kh6 {[%clk 0:00:03]} 59. f4 {[%clk 0:00:08]}  Rc1 {[%clk 0:00:01]} 60. Ra6+ {[%clk 0:00:07]}  Kg7 {[%clk 0:00:02]} 61. Kh4 {[%clk 0:00:07]}  Rc5 {[%clk 0:00:01]} 62. g5 {[%clk 0:00:05]} 1-0


[Site "https://www.chess.com"]

[Event "Titled Tuesday Blitz April 25 Early 2023"]
[White "Sliwicka, Alicja"]
[Black "Cesar Maestre, Bernardo"]
[WhiteFideId "1150677"]
[BlackFideId "24542547"]
[WhiteElo "2206"]
[BlackElo "2271"]
[Result "1-0"]
[Round "03"]
[TimeControl "180+2"]
[Date "2023.04.25"]
[WhiteClock "0:01:42"]
[BlackClock "0:01:40"]

1. e4 {[%clk 0:02:56]}  c6 {[%clk 0:03:00]} 2. d4 {[%clk 0:02:56]}  d5 {[%clk 0:03:00]} 3. e5 {[%clk 0:02:56]}  c5 {[%clk 0:03:00]} 4. dxc5 {[%clk 0:02:55]}  Nc6 {[%clk 0:03:01]} 5. Nf3 {[%clk 0:02:55]}  Bg4 {[%clk 0:02:59]} 6. c3 {[%clk 0:02:55]}  e6 {[%clk 0:02:58]} 7. Be3 {[%clk 0:02:50]}  Nxe5 {[%clk 0:02:51]} 8. Qa4+ {[%clk 0:02:46]}  Nc6 {[%clk 0:02:33]} 9. Qxg4 {[%clk 0:02:42]}  e5 {[%clk 0:02:33]} 10. Bb5 {[%clk 0:02:39]}  f6 {[%clk 0:02:22]} 11. Qe6+ {[%clk 0:02:30]}  Ne7 {[%clk 0:02:21]} 12. O-O {[%clk 0:02:24]}  a6 {[%clk 0:02:13]} 13. Ba4 {[%clk 0:02:22]}  Rc8 {[%clk 0:02:10]} 14. Rd1 {[%clk 0:02:20]}  Qa5 {[%clk 0:02:02]} 15. b3 {[%clk 0:02:05]}  Rd8 {[%clk 0:01:40]} 16. Nh4 {[%clk 0:01:42]} 1-0


[Site "https://www.chess.com"]

[Event "Titled Tuesday Blitz April 25 Early 2023"]
[White "Grossboss19"]
[Black "Martic, Ivan"]
[BlackFideId "929301"]
[WhiteElo "2268"]
[BlackElo "2360"]
[Result "0-1"]
[Round "03"]
[TimeControl "180+2"]
[Date "2023.04.25"]
[WhiteClock "0:00:01"]
[BlackClock "0:01:16"]

1. e4 {[%clk 0:02:59]}  c6 {[%clk 0:02:58]} 2. Nc3 {[%clk 0:02:53]}  d5 {[%clk 0:02:53]} 3. Nf3 {[%clk 0:02:53]}  Bg4 {[%clk 0:02:51]} 4. d3 {[%clk 0:02:46]}  e6 {[%clk 0:02:50]} 5. h3 {[%clk 0:02:46]}  Bh5 {[%clk 0:02:48]} 6. Bf4 {[%clk 0:02:38]}  Nd7 {[%clk 0:02:46]} 7. Be2 {[%clk 0:02:28]}  Ngf6 {[%clk 0:02:42]} 8. Nd2 {[%clk 0:02:28]}  Bxe2 {[%clk 0:02:40]} 9. Qxe2 {[%clk 0:02:27]}  Bb4 {[%clk 0:02:28]} 10. a3 {[%clk 0:02:19]}  Be7 {[%clk 0:02:23]} 11. g4 {[%clk 0:02:12]}  e5 {[%clk 0:02:19]} 12. Bg3 {[%clk 0:02:08]}  d4 {[%clk 0:02:16]} 13. Nd1 {[%clk 0:02:08]}  O-O {[%clk 0:02:02]} 14. f4 {[%clk 0:01:29]}  exf4 {[%clk 0:01:59]} 15. Bxf4 {[%clk 0:01:30]}  Re8 {[%clk 0:01:58]} 16. g5 {[%clk 0:01:22]}  Nd5 {[%clk 0:01:54]} 17. Bg3 {[%clk 0:00:56]}  Bxg5 {[%clk 0:01:52]} 18. Nf3 {[%clk 0:00:54]}  Bf4 {[%clk 0:01:48]} 19. Qh2 {[%clk 0:00:28]}  Qf6 {[%clk 0:01:43]} 20. Bxf4 {[%clk 0:00:23]}  Nxf4 {[%clk 0:01:43]} 21. Rf1 {[%clk 0:00:20]}  Ne5 {[%clk 0:01:41]} 22. Nxe5 {[%clk 0:00:19]}  Qh4+ {[%clk 0:01:41]} 23. Kd2 {[%clk 0:00:18]}  Nxh3 {[%clk 0:01:34]} 24. Nf3 {[%clk 0:00:14]}  Qh6+ {[%clk 0:01:33]} 25. Ke2 {[%clk 0:00:13]}  f5 {[%clk 0:01:33]} 26. Nf2 {[%clk 0:00:12]}  fxe4 {[%clk 0:01:30]} 27. Nxe4 {[%clk 0:00:10]}  Qe3+ {[%clk 0:01:25]} 28. Kd1 {[%clk 0:00:09]}  Nf4 {[%clk 0:01:22]} 29. Qd2 {[%clk 0:00:07]}  Nd5 {[%clk 0:01:22]} 30. Rf2 {[%clk 0:00:03]}  c5 {[%clk 0:01:17]} 31. Qxe3 {[%clk 0:00:03]}  Nxe3+ {[%clk 0:01:18]} 32. Kd2 {[%clk 0:00:03]}  b6 {[%clk 0:01:17]} 33. Rg1 {[%clk 0:00:02]}  Rf8 {[%clk 0:01:16]} 34. Ke2 {[%clk 0:00:01]}  Rae8 {[%clk 0:01:16]} 0-1


[Site "https://www.chess.com"]

[Event "Titled Tuesday Blitz April 25 Early 2023"]
[White "Bekkedahl, Zachary"]
[Black "Fiorito, Francisco"]
[WhiteFideId "2069156"]
[BlackFideId "180165"]
[WhiteElo "1943"]
[BlackElo "2341"]
[Result "1-0"]
[Round "03"]
[TimeControl "180+2"]
[Date "2023.04.25"]
[WhiteClock "0:00:17"]
[BlackClock "0:00:01"]

1. e4 {[%clk 0:03:00]}  c5 {[%clk 0:02:59]} 2. Nf3 {[%clk 0:03:00]}  Nc6 {[%clk 0:02:59]} 3. Bb5 {[%clk 0:02:59]}  g6 {[%clk 0:02:59]} 4. O-O {[%clk 0:02:58]}  Bg7 {[%clk 0:02:59]} 5. c3 {[%clk 0:02:57]}  Nf6 {[%clk 0:02:59]} 6. Re1 {[%clk 0:02:57]}  O-O {[%clk 0:02:56]} 7. d4 {[%clk 0:02:56]}  d5 {[%clk 0:02:56]} 8. e5 {[%clk 0:02:54]}  Ne4 {[%clk 0:02:56]} 9. Nbd2 {[%clk 0:02:52]}  Nxd2 {[%clk 0:02:48]} 10. Bxd2 {[%clk 0:02:53]}  Qb6 {[%clk 0:02:44]} 11. Qb3 {[%clk 0:02:34]}  c4 {[%clk 0:02:07]} 12. Qa4 {[%clk 0:02:29]}  Nb8 {[%clk 0:02:03]} 13. b3 {[%clk 0:02:26]}  a6 {[%clk 0:01:30]} 14. bxc4 {[%clk 0:02:26]}  axb5 {[%clk 0:01:31]} 15. Qxa8 {[%clk 0:02:26]}  Na6 {[%clk 0:01:19]} 16. cxb5 {[%clk 0:02:26]}  Bg4 {[%clk 0:01:16]} 17. Qxf8+ {[%clk 0:02:21]}  Bxf8 {[%clk 0:01:16]} 18. bxa6 {[%clk 0:02:22]}  Qxa6 {[%clk 0:01:16]} 19. Rab1 {[%clk 0:01:51]}  Bxf3 {[%clk 0:01:13]} 20. gxf3 {[%clk 0:01:51]}  Qxa2 {[%clk 0:01:13]} 21. Be3 {[%clk 0:01:48]}  Qa6 {[%clk 0:00:59]} 22. Rb2 {[%clk 0:01:44]}  Qc6 {[%clk 0:00:36]} 23. Rb3 {[%clk 0:01:36]}  Kg7 {[%clk 0:00:27]} 24. Reb1 {[%clk 0:01:37]}  h6 {[%clk 0:00:19]} 25. Rxb7 {[%clk 0:01:37]}  Qxc3 {[%clk 0:00:19]} 26. Rb8 {[%clk 0:01:36]}  Qc2 {[%clk 0:00:16]} 27. Rc1 {[%clk 0:01:21]}  Qf5 {[%clk 0:00:10]} 28. Rcc8 {[%clk 0:01:21]}  Qxf3 {[%clk 0:00:10]} 29. h3 {[%clk 0:00:38]}  Qxh3 {[%clk 0:00:08]} 30. Rxf8 {[%clk 0:00:36]}  Qg4+ {[%clk 0:00:09]} 31. Kh2 {[%clk 0:00:34]}  Qh4+ {[%clk 0:00:09]} 32. Kg2 {[%clk 0:00:35]}  Qg4+ {[%clk 0:00:10]} 33. Kf1 {[%clk 0:00:35]}  Qd1+ {[%clk 0:00:10]} 34. Kg2 {[%clk 0:00:34]}  Qg4+ {[%clk 0:00:11]} 35. Kh2 {[%clk 0:00:34]}  g5 {[%clk 0:00:08]} 36. Rg8+ {[%clk 0:00:29]}  Kh7 {[%clk 0:00:08]} 37. Rgf8 {[%clk 0:00:28]}  Qh4+ {[%clk 0:00:08]} 38. Kg2 {[%clk 0:00:27]}  Qg4+ {[%clk 0:00:08]} 39. Kh2 {[%clk 0:00:27]}  Kg6 {[%clk 0:00:09]} 40. Rb6+ {[%clk 0:00:26]}  e6 {[%clk 0:00:08]} 41. Rb7 {[%clk 0:00:25]}  Qh4+ {[%clk 0:00:06]} 42. Kg2 {[%clk 0:00:25]}  Kf5 {[%clk 0:00:06]} 43. Rbxf7+ {[%clk 0:00:24]}  Ke4 {[%clk 0:00:06]} 44. Rf3 {[%clk 0:00:24]}  Qg4+ {[%clk 0:00:06]} 45. Rg3 {[%clk 0:00:24]}  Qh4 {[%clk 0:00:04]} 46. Rf6 {[%clk 0:00:22]}  g4 {[%clk 0:00:02]} 47. Rxh6 {[%clk 0:00:22]}  Qd8 {[%clk 0:00:02]} 48. Rg6 {[%clk 0:00:22]}  Kd3 {[%clk 0:00:02]} 49. R6xg4 {[%clk 0:00:22]}  Ke2 {[%clk 0:00:01]} 50. Bg5 {[%clk 0:00:22]}  Qa5 {[%clk 0:00:02]} 51. Re3+ {[%clk 0:00:21]}  Kd1 {[%clk 0:00:03]} 52. Rh4 {[%clk 0:00:20]}  Qa6 {[%clk 0:00:03]} 53. Rh1+ {[%clk 0:00:20]}  Kc2 {[%clk 0:00:03]} 54. Rhe1 {[%clk 0:00:20]}  Qc8 {[%clk 0:00:02]} 55. R1e2+ {[%clk 0:00:21]}  Kb1 {[%clk 0:00:02]} 56. Rd3 {[%clk 0:00:20]}  Qc1 {[%clk 0:00:01]} 57. Bxc1 {[%clk 0:00:17]} 1-0


[Site "https://www.chess.com"]

[Event "Titled Tuesday Blitz April 25 Early 2023"]
[White "Hirneise, Jens"]
[Black "Jiganchine, Roman"]
[WhiteFideId "24614734"]
[BlackFideId "2603667"]
[WhiteElo "2345"]
[BlackElo "2264"]
[Result "1-0"]
[Round "03"]
[TimeControl "180+2"]
[Date "2023.04.25"]
[WhiteClock "0:01:03"]
[BlackClock "0:00:04"]

1. e4 {[%clk 0:03:00]}  c6 {[%clk 0:02:56]} 2. Nc3 {[%clk 0:02:58]}  d5 {[%clk 0:02:57]} 3. Qe2 {[%clk 0:02:58]}  dxe4 {[%clk 0:02:43]} 4. Nxe4 {[%clk 0:02:59]}  Bf5 {[%clk 0:02:39]} 5. d3 {[%clk 0:02:55]}  e6 {[%clk 0:02:34]} 6. g3 {[%clk 0:02:55]}  Nf6 {[%clk 0:02:33]} 7. Bg2 {[%clk 0:02:54]}  Nbd7 {[%clk 0:02:32]} 8. Nf3 {[%clk 0:02:53]}  Qa5+ {[%clk 0:02:31]} 9. c3 {[%clk 0:02:49]}  Be7 {[%clk 0:02:22]} 10. O-O {[%clk 0:02:48]}  h6 {[%clk 0:02:22]} 11. Re1 {[%clk 0:02:43]}  O-O {[%clk 0:02:21]} 12. h3 {[%clk 0:02:41]}  Bh7 {[%clk 0:02:16]} 13. Kh2 {[%clk 0:02:38]}  Rfe8 {[%clk 0:02:08]} 14. Bf4 {[%clk 0:02:36]}  Nd5 {[%clk 0:02:07]} 15. Bd2 {[%clk 0:02:29]}  Qb6 {[%clk 0:02:04]} 16. b4 {[%clk 0:02:22]}  a5 {[%clk 0:02:04]} 17. a3 {[%clk 0:02:20]}  Qa6 {[%clk 0:01:53]} 18. c4 {[%clk 0:02:15]}  N5f6 {[%clk 0:01:49]} 19. Bc3 {[%clk 0:02:14]}  Rad8 {[%clk 0:01:38]} 20. Rab1 {[%clk 0:02:12]}  Nxe4 {[%clk 0:01:32]} 21. dxe4 {[%clk 0:02:13]}  Nf6 {[%clk 0:01:32]} 22. Nd2 {[%clk 0:02:03]}  Nd7 {[%clk 0:00:58]} 23. b5 {[%clk 0:01:58]}  Qa7 {[%clk 0:00:54]} 24. bxc6 {[%clk 0:01:53]}  bxc6 {[%clk 0:00:55]} 25. Nb3 {[%clk 0:01:48]}  a4 {[%clk 0:00:54]} 26. Na5 {[%clk 0:01:48]}  Qc5 {[%clk 0:00:21]} 27. Nb7 {[%clk 0:01:41]}  Qg5 {[%clk 0:00:11]} 28. h4 {[%clk 0:01:36]}  Qg6 {[%clk 0:00:11]} 29. Nxd8 {[%clk 0:01:35]}  Bxd8 {[%clk 0:00:11]} 30. h5 {[%clk 0:01:25]}  Qg5 {[%clk 0:00:11]} 31. f4 {[%clk 0:01:23]}  Qe7 {[%clk 0:00:11]} 32. Bb4 {[%clk 0:01:20]}  c5 {[%clk 0:00:10]} 33. Bc3 {[%clk 0:01:21]}  Qd6 {[%clk 0:00:09]} 34. Red1 {[%clk 0:01:19]}  Qa6 {[%clk 0:00:09]} 35. Qd3 {[%clk 0:01:16]}  Nf6 {[%clk 0:00:09]} 36. Qxd8 {[%clk 0:01:12]}  Qxc4 {[%clk 0:00:07]} 37. Bxf6 {[%clk 0:01:07]}  Bxe4 {[%clk 0:00:04]} 38. Qxe8+ {[%clk 0:01:02]}  Kh7 {[%clk 0:00:04]} 39. Qxf7 {[%clk 0:01:03]} 1-0


[Site "https://www.chess.com"]

[Event "Titled Tuesday Blitz April 25 Early 2023"]
[White "Shtivelband, Richard"]
[Black "Gontcharov, Vladislav"]
[WhiteFideId "2017342"]
[BlackFideId "4123492"]
[WhiteElo "2261"]
[BlackElo "2420"]
[Result "0-1"]
[Round "03"]
[TimeControl "180+2"]
[Date "2023.04.25"]
[WhiteClock "0:01:15"]
[BlackClock "0:00:53"]

1. d4 {[%clk 0:02:58]}  Nf6 {[%clk 0:02:59]} 2. c4 {[%clk 0:02:57]}  c5 {[%clk 0:02:58]} 3. d5 {[%clk 0:02:56]}  e6 {[%clk 0:02:58]} 4. Nc3 {[%clk 0:02:55]}  exd5 {[%clk 0:02:58]} 5. cxd5 {[%clk 0:02:55]}  d6 {[%clk 0:02:58]} 6. f3 {[%clk 0:02:53]}  g6 {[%clk 0:02:54]} 7. Bf4 {[%clk 0:02:50]}  a6 {[%clk 0:02:51]} 8. a4 {[%clk 0:02:48]}  Bg7 {[%clk 0:02:51]} 9. Qd2 {[%clk 0:02:46]}  O-O {[%clk 0:02:49]} 10. e4 {[%clk 0:02:42]}  Re8 {[%clk 0:02:47]} 11. Bd3 {[%clk 0:02:39]}  Qe7 {[%clk 0:02:43]} 12. Nge2 {[%clk 0:02:33]}  Nbd7 {[%clk 0:02:43]} 13. O-O {[%clk 0:02:32]}  Ne5 {[%clk 0:02:36]} 14. a5 {[%clk 0:02:30]}  Nxd3 {[%clk 0:02:24]} 15. Qxd3 {[%clk 0:02:27]}  Nd7 {[%clk 0:02:24]} 16. Rae1 {[%clk 0:02:20]}  Rb8 {[%clk 0:02:23]} 17. g4 {[%clk 0:01:52]}  b6 {[%clk 0:02:13]} 18. axb6 {[%clk 0:01:50]}  Rxb6 {[%clk 0:02:12]} 19. Qc2 {[%clk 0:01:50]}  a5 {[%clk 0:02:03]} 20. Bg3 {[%clk 0:01:41]}  Ba6 {[%clk 0:02:02]} 21. Ra1 {[%clk 0:01:39]}  Ne5 {[%clk 0:01:57]} 22. Rxa5 {[%clk 0:01:35]}  Bd3 {[%clk 0:01:35]} 23. Qa4 {[%clk 0:01:33]}  Rxb2 {[%clk 0:01:29]} 24. Ra7 {[%clk 0:01:32]}  Qd8 {[%clk 0:01:21]} 25. Nf4 {[%clk 0:01:27]}  Bxf1 {[%clk 0:01:20]} 26. Kxf1 {[%clk 0:01:24]}  Nxf3 {[%clk 0:01:15]} 27. Nb5 {[%clk 0:01:23]}  Nd2+ {[%clk 0:01:07]} 28. Kg1 {[%clk 0:01:22]}  Nxe4 {[%clk 0:01:06]} 29. Nc7 {[%clk 0:01:20]}  Bd4+ {[%clk 0:00:54]} 30. Kh1 {[%clk 0:01:16]}  Nxg3+ {[%clk 0:00:53]} 31. hxg3 {[%clk 0:01:15]}  Re1# {[%clk 0:00:53]} 0-1


[Site "https://www.chess.com"]